fUSD/lending_fUSD_20250620
["ID","MTS","AMOUNT","RATE_DAILY","PERIOD"]
[366769578,1750440685238,-705.73,0.00027856,4]
[366769579,1750440685248,-490.0,0.00027856,4]
[366769580,1750440685260,-498.37238648,0.00027856,4]
[366769581,1750440685269,-490.0,0.00027856,4]
[366769582,1750440685280,-490.0,0.00027856,4]
[366769583,1750440685289,-490.0,0.00027856,4]
[366769584,1750440685299,-490.0,0.00027856,4]
[366769585,1750440685309,-490.0,0.00027856,4]
[366769586,1750440685318,-490.0,0.00027856,4]
[366769587,1750440685328,-490.0,0.00027856,4]
[366769588,1750440685338,-490.0,0.00027856,4]
[366769589,1750440685347,-490.0,0.00027856,4]
[366769590,1750440685358,-490.0,0.00027856,4]
[366769591,1750440685367,-490.0,0.00027856,4]
[366769592,1750440685377,-490.0,0.00027856,4]
[366769593,1750440685388,-490.0,0.00027856,4]
[366769594,1750440685398,-490.0,0.00027856,4]
[366769595,1750440685409,-490.0,0.00027856,4]
[366769596,1750440685419,-490.0,0.00027856,4]
[366769597,1750440685428,-490.0,0.00027856,4]
[366769598,1750440685438,-407.74,0.00027856,4]
[366769599,1750440685447,-490.0,0.00027856,4]
[366769600,1750440685457,-490.0,0.00027856,4]
[366769601,1750440685466,-490.0,0.00027856,4]
[366769602,1750440685476,-490.0,0.00027856,4]
[366769603,1750440685498,-490.0,0.00027856,4]
[366769604,1750440685510,-490.0,0.00027856,4]
[366769605,1750440685520,-490.0,0.00027856,4]
[366769606,1750440685531,-490.0,0.00027856,4]
[366769607,1750440685541,-490.0,0.00027856,4]
[366769608,1750440685551,-490.0,0.00027856,4]
[366769609,1750440685562,-490.0,0.00027856,4]
[366769610,1750440685571,-490.0,0.00027856,4]
[366769611,1750440685581,-490.0,0.00027856,4]
[366769612,1750440685592,-490.0,0.00027856,4]
[366769613,1750440685602,-490.0,0.00027856,4]
[366769614,1750440685612,-490.0,0.00027856,4]
[366769615,1750440685622,-490.0,0.00027856,4]
[366769616,1750440685632,-490.0,0.00027856,4]
[366769617,1750440685642,-490.0,0.00027856,4]
[366769618,1750440685652,-490.0,0.00027856,4]
[366769619,1750440685661,-490.0,0.00027856,4]
[366769620,1750440685671,-490.0,0.00027856,4]
[366769621,1750440685681,-490.0,0.00027856,4]
[366769622,1750440685691,-490.0,0.00027856,4]
[366769623,1750440685702,-490.0,0.00027856,4]
[366769624,1750440685729,-490.0,0.00027856,4]
[366769625,1750440685757,-490.0,0.00027856,4]
[366769626,1750440685780,-678.01,0.00027856,4]
[366769627,1750440685805,-490.0,0.00027856,4]
[366769628,1750440685829,-490.0,0.00027856,4]
[366769629,1750440685849,-667.64,0.00027856,4]
[366769630,1750440685872,-484.98947337,0.00027856,4]
[366769631,1750440685901,-4654.55,0.00027856,4]
[366769632,1750440685924,-490.0,0.00027856,4]
[366769633,1750440685946,-1757.34,0.00027856,4]
[366769634,1750440685974,-490.0,0.00027856,4]
[366769635,1750440686001,-2408.79,0.00027856,4]
[366769636,1750440686017,-490.0,0.00027856,4]
[366769637,1750440686039,-490.0,0.00027856,4]
[366769638,1750440686053,-933.37,0.00027856,4]
[366769639,1750440686078,-490.0,0.00027856,4]
[366769640,1750440686093,-482.96449514,0.00027856,4]
[366769641,1750440686117,-490.0,0.00027856,4]
[366769642,1750440686141,-490.0,0.00027856,4]
[366769643,1750440686163,-490.0,0.00027856,4]
[366769644,1750440686183,-490.0,0.00027856,4]
[366769645,1750440686205,-1279.77,0.00027856,4]
[366769646,1750440686225,-490.0,0.00027856,4]
[366769647,1750440686245,-490.0,0.00027856,4]
[366769648,1750440686266,-490.0,0.00027856,4]
[366769649,1750440686292,-490.0,0.00027856,4]
[366769650,1750440686316,-490.0,0.00027856,4]
[366769651,1750440686338,-739.04,0.00027856,4]
[366769652,1750440686359,-490.0,0.00027856,4]
[366769653,1750440686379,-344.16,0.00027856,4]
[366769654,1750440686399,-499.97,0.00027856,4]
[366769655,1750440686417,-490.0,0.00027856,4]
[366769656,1750440686437,-224.70279618,0.00027856,4]
[366769657,1750440686457,-490.0,0.00027856,4]
[366769658,1750440686477,-490.0,0.00027856,4]
[366769659,1750440686496,-490.0,0.00027856,4]
[366769660,1750440686518,-490.0,0.00027856,4]
[366769661,1750440686536,-490.0,0.00027856,4]
[366769662,1750440686557,-490.0,0.00027856,4]
[366769663,1750440686576,-490.0,0.00027856,4]
[366769664,1750440686594,-543.59,0.00027856,4]
[366769665,1750440686613,-490.0,0.00027856,4]
[366769666,1750440686632,-506.22893777,0.00027856,4]
[366769667,1750440686651,-490.0,0.00027856,4]
[366769668,1750440686674,-526.93513565,0.00027856,4]
[366769669,1750440686696,-490.0,0.00027856,4]
[366769670,1750440686716,-490.0,0.00027856,4]
[366769671,1750440686735,-490.0,0.00027856,4]
[366769672,1750440686756,-490.0,0.00027856,4]
[366769673,1750440686775,-586.96708666,0.00027856,4]
[366769674,1750440686793,-500.0,0.00027859,2]
[366769675,1750440686810,-490.0,0.00027861,4]
[366769676,1750440686828,-513.30598628,0.00027861,4]
[366769677,1750440686847,-490.0,0.00027862,4]
[366769678,1750440686865,-490.0,0.00027862,4]
[366769679,1750440686883,-490.0,0.00027862,4]
[366769680,1750440686901,-490.0,0.00027862,4]
[366769681,1750440686919,-490.0,0.00027862,4]
[366769682,1750440686938,-490.0,0.00027862,4]
[366769683,1750440686955,-692.35,0.00027862,4]
[366769684,1750440686972,-639.62,0.00027862,4]
[366769685,1750440686990,-490.0,0.00027862,4]
[366769686,1750440687007,-490.0,0.00027862,4]
[366769687,1750440687025,-490.0,0.00027862,4]
[366769688,1750440687047,-490.0,0.00027862,4]
[366769689,1750440687065,-490.0,0.00027862,4]
[366769690,1750440687083,-490.0,0.00027862,4]
[366769691,1750440687102,-490.0,0.00027862,4]
[366769692,1750440687121,-490.0,0.00027862,4]
[366769693,1750440687139,-490.0,0.00027862,4]
[366769694,1750440687158,-490.0,0.00027862,4]
[366769695,1750440687176,-490.0,0.00027862,4]
[366769696,1750440687195,-490.0,0.00027862,4]
[366769697,1750440687213,-486.95020045,0.00027862,4]
[366769698,1750440687232,-490.0,0.00027862,4]
[366769699,1750440687249,-502.65769954,0.00027862,4]
[366769700,1750440687268,-490.0,0.00027862,4]
[366769701,1750440687295,-700.0,0.0002787,2]
[366769702,1750440687326,-400.0,0.0002787,2]
[366769703,1750440687352,-4242.89272737,0.00027876,2]
[366769704,1750440687376,-15772.61053497,0.000279,2]
[366769705,1750440687400,-5600.0,0.000279,10]
[366769706,1750440687422,-150.72589526,0.00027924,5]
[366769707,1750440687444,-200.0,0.00027999,2]
[366769708,1750440687464,-1227.77947601,0.00028,14]
[366769709,1750440687485,-27492.91719361,0.00028,2]
[366769710,1750440687505,-4181.38722174,0.00028024,2]
[366769711,1750440687524,-168.0,0.00028066,2]
[366769712,1750440687544,-500.0,0.0002809,2]
[366769713,1750440687564,-500.0,0.0002809,2]
[366769714,1750440687886,-4242.89272737,0.0002809,2]
[366769715,1750440687902,-500.0,0.00028099,2]
[366769716,1750440687912,-9931.43,0.000281,2]
[366769717,1750440687922,-500.0,0.000281,2]
[366769718,1750440687932,-500.0,0.000281,2]
[366769719,1750440687941,-500.0,0.000281,2]
[366769720,1750440687951,-500.0,0.000281,2]
[366769721,1750440687960,-500.0,0.000281,2]
[366769722,1750440687970,-500.0,0.000281,2]
[366769723,1750440687980,-500.0,0.000281,2]
[366769724,1750440687989,-500.0,0.000281,2]
[366769725,1750440687999,-517.0,0.000281,2]
[366769726,1750440688011,-500.0,0.000281,2]
[366769727,1750440688021,-500.0,0.000281,2]
[366769728,1750440688030,-500.0,0.000281,2]
[366769729,1750440688045,-500.0,0.000281,2]
[366769730,1750440688056,-500.0,0.000281,2]
[366769731,1750440688066,-500.0,0.000281,2]
[366769732,1750440688076,-500.0,0.000281,2]
[366769733,1750440688086,-500.0,0.000281,2]
[366769734,1750440688096,-500.0,0.000281,2]
[366769735,1750440688105,-500.0,0.000281,2]
[366769736,1750440688115,-500.0,0.000281,2]
[366769737,1750440688125,-500.0,0.000281,2]
[366769738,1750440688134,-500.0,0.000281,2]
[366769739,1750440688144,-500.0,0.000281,2]
[366769740,1750440688154,-500.0,0.000281,2]
[366769741,1750440688164,-500.0,0.000281,2]
[366769742,1750440688173,-500.0,0.000281,2]
[366769743,1750440688183,-500.0,0.000281,2]
[366769744,1750440688194,-500.0,0.000281,2]
[366769745,1750440688204,-500.0,0.000281,2]
[366769746,1750440688214,-500.0,0.000281,2]
[366769747,1750440688224,-500.0,0.000281,2]
[366769748,1750440688234,-500.0,0.000281,2]
[366769749,1750440688245,-500.0,0.000281,2]
[366769750,1750440688258,-500.0,0.000281,2]
[366769751,1750440688268,-500.0,0.000281,2]
[366769752,1750440688278,-500.0,0.000281,2]
[366769753,1750440688289,-500.0,0.000281,2]
[366769754,1750440688299,-500.0,0.000281,2]
[366769755,1750440688309,-500.0,0.000281,2]
[366769756,1750440688319,-500.0,0.000281,2]
[366769757,1750440688330,-500.0,0.000281,2]
[366769758,1750440688340,-500.0,0.000281,2]
[366769759,1750440688351,-500.0,0.000281,2]
[366769760,1750440688361,-500.0,0.000281,2]
[366769761,1750440688371,-500.0,0.000281,2]
[366769762,1750440688382,-500.0,0.000281,2]
[366769763,1750440688391,-500.0,0.000281,2]
[366769764,1750440688402,-500.0,0.000281,2]
[366769765,1750440688412,-500.0,0.000281,2]
[366769766,1750440688422,-500.0,0.000281,2]
[366769767,1750440688432,-500.0,0.000281,2]
[366769768,1750440688442,-500.0,0.000281,2]
[366769769,1750440688452,-500.0,0.000281,2]
[366769770,1750440688462,-500.0,0.000281,2]
[366769771,1750440688478,-500.0,0.000281,2]
[366769772,1750440688488,-500.0,0.000281,2]
[366769773,1750440688498,-500.0,0.000281,2]
[366769774,1750440688511,-500.0,0.000281,2]
[366769775,1750440688520,-500.0,0.000281,2]
[366769776,1750440688530,-500.0,0.000281,2]
[366769777,1750440688540,-500.0,0.000281,2]
[366769778,1750440688550,-500.0,0.000281,2]
[366769779,1750440688560,-500.0,0.000281,2]
[366769780,1750440688570,-500.0,0.000281,2]
[366769781,1750440688580,-500.0,0.000281,2]
[366769782,1750440688589,-500.0,0.000281,2]
[366769783,1750440688599,-500.0,0.000281,2]
[366769784,1750440688609,-500.0,0.000281,2]
[366769785,1750440688619,-500.0,0.000281,2]
[366769786,1750440688629,-500.0,0.000281,2]
[366769787,1750440688639,-500.0,0.000281,2]
[366769788,1750440688650,-500.0,0.000281,2]
[366769789,1750440688660,-500.0,0.000281,2]
[366769790,1750440688670,-500.0,0.000281,2]
[366769791,1750440688680,-500.0,0.000281,2]
[366769792,1750440688690,-500.0,0.000281,2]
[366769793,1750440688700,-500.0,0.000281,2]
[366769794,1750440688710,-500.0,0.000281,2]
[366769795,1750440688720,-500.0,0.000281,2]
[366769796,1750440688731,-500.0,0.000281,2]
[366769797,1750440688745,-500.0,0.000281,2]
[366769798,1750440688755,-500.0,0.000281,2]
[366769799,1750440688766,-500.0,0.000281,2]
[366769800,1750440688776,-500.0,0.000281,2]
[366769801,1750440688787,-500.0,0.000281,2]
[366769802,1750440688797,-500.0,0.000281,2]
[366769803,1750440688808,-500.0,0.000281,2]
[366769804,1750440688818,-500.0,0.000281,2]
[366769805,1750440688828,-500.0,0.000281,2]
[366769806,1750440688838,-500.0,0.000281,2]
[366769807,1750440688847,-500.0,0.000281,2]
[366769808,1750440688857,-500.0,0.000281,2]
[366769809,1750440688867,-500.0,0.000281,2]
[366769810,1750440688877,-500.0,0.000281,2]
[366769811,1750440688887,-25699.2,0.000281,2]
[366769812,1750440688897,-417.9121673,0.00028116,5]
[366769813,1750440688908,-2000.0,0.00028116,5]
[366769814,1750440688917,-399.12982782,0.00028116,5]
[366769815,1750440688927,-490.0,0.00028123,4]
[366769816,1750440688937,-622.96246873,0.00028123,4]
[366769817,1750440688947,-490.0,0.00028123,4]
[366769818,1750440688957,-501.65,0.00028123,4]
[366769819,1750440688967,-490.0,0.00028123,4]
[366769820,1750440688977,-490.0,0.00028123,4]
[366769821,1750440688987,-830.23,0.00028123,4]
[366769822,1750440688997,-490.0,0.00028123,4]
[366769823,1750440689009,-665.05,0.00028123,4]
[366769824,1750440689019,-736.8,0.00028123,4]
[366769825,1750440689030,-404.47190142,0.00028123,4]
[366769826,1750440689040,-490.0,0.00028123,4]
[366769827,1750440689050,-380.96286749,0.00028123,4]
[366769828,1750440689061,-490.0,0.00028123,4]
[366769829,1750440689071,-490.0,0.00028123,4]
[366769830,1750440689081,-2220.12,0.00028123,4]
[366769831,1750440689091,-713.54,0.00028123,4]
[366769832,1750440689101,-1265.1,0.00028123,4]
[366769833,1750440689111,-535.39,0.00028123,4]
[366769834,1750440689122,-793.31,0.00028123,4]
[366769835,1750440689132,-1348.24,0.00028123,4]
[366769836,1750440689142,-666.61,0.00028123,4]
[366769837,1750440689151,-490.0,0.00028123,4]
[366769838,1750440689161,-490.0,0.00028123,4]
[366769839,1750440689171,-490.0,0.00028123,4]
[366769840,1750440689181,-490.0,0.00028123,4]
[366769841,1750440689191,-490.0,0.00028123,4]
[366769842,1750440689202,-1177.57,0.00028123,4]
[366769843,1750440689212,-490.0,0.00028123,4]
[366769844,1750440689222,-490.0,0.00028123,4]
[366769845,1750440689232,-490.0,0.00028123,4]
[366769846,1750440689242,-771.36,0.00028123,4]
[366769847,1750440689252,-12985.333627,0.00028123,4]
[366769848,1750440689266,-2057.42,0.00028123,4]
[366769849,1750440689275,-474.11766363,0.00028123,4]
[366769850,1750440689285,-490.0,0.00028123,4]
[366769851,1750440689295,-405.10090916,0.00028124,4]
[366769852,1750440689305,-490.0,0.00028124,4]
[366769853,1750440689315,-490.0,0.00028124,4]
[366769854,1750440689324,-490.0,0.00028124,4]
[366769855,1750440689334,-490.0,0.00028124,4]
[366769856,1750440689343,-490.0,0.00028124,4]
[366769857,1750440689353,-716.45,0.00028124,4]
[366769858,1750440689363,-490.0,0.00028124,4]
[366769859,1750440689373,-490.0,0.00028124,4]
[366769860,1750440689384,-203.09114348,0.00028124,4]
[366769861,1750440689393,-520.24,0.00028124,4]
[366769862,1750440689403,-754.42,0.00028124,4]
[366769863,1750440689413,-490.0,0.00028124,4]
[366769864,1750440689423,-602.12,0.00028124,4]
[366769865,1750440689432,-490.0,0.00028124,4]
[366769866,1750440689443,-490.0,0.00028124,4]
[366769867,1750440689453,-490.0,0.00028124,4]
[366769868,1750440689462,-905.83,0.00028124,4]
[366769869,1750440689472,-490.0,0.00028124,4]
[366769870,1750440689483,-490.0,0.00028124,4]
[366769871,1750440689492,-490.0,0.00028124,4]
[366769872,1750440689502,-492.17,0.00028124,4]
[366769873,1750440689514,-1393.17,0.00028124,4]
[366769874,1750440689524,-490.0,0.00028124,4]
[366769875,1750440689534,-490.0,0.00028124,4]
[366769876,1750440689544,-584.86,0.00028124,4]
[366769877,1750440689554,-490.0,0.00028124,4]
[366769878,1750440689564,-490.0,0.00028124,4]
[366769879,1750440689574,-490.0,0.00028124,4]
[366769880,1750440689583,-509.4,0.00028124,4]
[366769881,1750440689593,-721.05,0.00028124,4]
[366769882,1750440689603,-834.17,0.00028124,4]
[366769883,1750440689612,-490.0,0.00028124,4]
[366769884,1750440689622,-490.0,0.00028124,4]
[366769885,1750440689632,-490.0,0.00028124,4]
[366769886,1750440689642,-490.0,0.00028124,4]
[366769887,1750440689653,-554.92,0.00028124,4]
[366769888,1750440689663,-582.32398962,0.00028124,4]
[366769889,1750440689673,-490.0,0.00028124,4]
[366769890,1750440689683,-490.0,0.00028124,4]
[366769891,1750440689694,-490.0,0.00028124,4]
[366769892,1750440689704,-177.09853757,0.00028124,4]
[366769893,1750440689714,-490.0,0.00028124,4]
[366769894,1750440689724,-490.0,0.00028124,4]
[366769895,1750440689737,-490.0,0.00028124,4]
[366769896,1750440689748,-490.0,0.00028124,4]
[366769897,1750440689760,-539.41393207,0.00028124,4]
[366769898,1750440689770,-555.61,0.00028124,4]
[366769899,1750440689781,-490.0,0.00028124,4]
[366769900,1750440689791,-490.0,0.00028124,4]
[366769901,1750440689801,-490.0,0.00028124,4]
[366769902,1750440689811,-490.0,0.00028124,4]
[366769903,1750440689821,-541.25,0.00028124,4]
[366769904,1750440689831,-490.0,0.00028124,4]
[366769905,1750440689840,-490.0,0.00028124,4]
[366769906,1750440689850,-490.0,0.00028124,4]
[366769907,1750440689860,-1906.665071,0.00028124,4]
[366769908,1750440689870,-527.51,0.00028124,4]
[366769909,1750440689880,-764.08,0.00028124,4]
[366769910,1750440689890,-11113.072639,0.00028124,4]
[366769911,1750440689900,-490.0,0.00028124,4]
[366769912,1750440689909,-490.0,0.00028124,4]
[366769913,1750440689919,-570.69,0.00028124,4]
[366769914,1750440689928,-490.0,0.00028124,4]
[366769915,1750440689938,-490.0,0.00028124,4]
[366769916,1750440689947,-890.98,0.00028124,4]
[366769917,1750440689957,-490.0,0.00028124,4]
[366769918,1750440689967,-546.75,0.00028124,4]
[366769919,1750440689978,-1938.15,0.00028124,4]
[366769920,1750440689987,-490.0,0.00028124,4]
[366769921,1750440689996,-1286.16,0.00028124,4]
[366769922,1750440690008,-490.0,0.00028124,4]
[366769923,1750440690018,-490.0,0.00028124,4]
[366769924,1750440690028,-1042.0,0.00028124,4]
[366769925,1750440690040,-490.0,0.00028124,4]
[366769926,1750440690050,-791.65,0.00028124,4]
[366769927,1750440690060,-566.26,0.00028124,4]
[366769928,1750440690070,-490.0,0.00028124,4]
[366769929,1750440690080,-823.76,0.00028124,4]
[366769930,1750440690090,-490.0,0.00028124,4]
[366769931,1750440690100,-653.43,0.00028124,4]
[366769932,1750440690110,-490.0,0.00028124,4]
[366769933,1750440690120,-797.01,0.00028124,4]
[366769934,1750440690130,-705.01,0.00028124,4]
[366769935,1750440690140,-493.89,0.00028124,4]
[366769936,1750440690339,-499.27,0.00028124,4]
[366769937,1750440690349,-928.6,0.00028124,4]
[366769938,1750440690360,-490.0,0.00028124,4]
[366769939,1750440690370,-1752.63,0.00028124,4]
[366769940,1750440690381,-490.0,0.00028124,4]
[366769941,1750440690392,-490.0,0.00028124,4]
[366769942,1750440690403,-490.0,0.00028124,4]
[366769943,1750440690413,-669.55,0.00028124,4]
[366769944,1750440690423,-490.0,0.00028124,4]
[366769945,1750440690434,-490.0,0.00028124,4]
[366769946,1750440690444,-490.0,0.00028124,4]
[366769947,1750440690454,-614.6,0.00028124,4]
[366769948,1750440690464,-513.28,0.00028124,4]
[366769949,1750440690475,-1221.53,0.00028124,4]
[366769950,1750440690486,-1000.0,0.00028124,2]
[366769951,1750440690496,-12380.07248749,0.00028125,2]
[366769952,1750440690509,-490.0,0.00028125,4]
[366769953,1750440690519,-490.0,0.00028125,4]
[366769954,1750440690529,-490.0,0.00028125,4]
[366769955,1750440690538,-490.0,0.00028125,4]
[366769956,1750440690548,-647.28,0.00028125,4]
[366769957,1750440690558,-516.8,0.00028125,4]
[366769958,1750440690569,-667.67,0.00028125,4]
[366769959,1750440690579,-490.0,0.00028125,4]
[366769960,1750440690588,-490.0,0.00028125,4]
[366769961,1750440690598,-490.0,0.00028125,4]
[366769962,1750440690608,-490.0,0.00028125,4]
[366769963,1750440690618,-504.97,0.00028125,4]
[366769964,1750440690628,-490.0,0.00028125,4]
[366769965,1750440690638,-475.35320888,0.00028125,4]
[366769966,1750440690647,-490.0,0.00028125,4]
[366769967,1750440690657,-490.0,0.00028125,4]
[366769968,1750440690667,-490.0,0.00028125,4]
[366769969,1750440690677,-490.0,0.00028125,4]
[366769970,1750440690687,-514.51,0.00028125,4]
[366769971,1750440690697,-490.0,0.00028125,4]
[366769972,1750440690707,-490.0,0.00028125,4]
[366769973,1750440690716,-490.0,0.00028125,4]
[366769974,1750440690726,-490.0,0.00028125,4]
[366769975,1750440690737,-603.69,0.00028125,4]
[366769976,1750440690747,-490.0,0.00028125,4]
[366769977,1750440690757,-490.0,0.00028125,4]
[366769978,1750440690771,-570.28622471,0.00028125,4]
[366769979,1750440690781,-916.28,0.00028125,4]
[366769980,1750440690792,-490.0,0.00028125,4]
[366769981,1750440690801,-490.0,0.00028125,4]
[366769982,1750440690813,-578.52,0.00028125,4]
[366769983,1750440690823,-490.0,0.00028125,4]
[366769984,1750440690833,-793.1,0.00028125,4]
[366769985,1750440690844,-490.0,0.00028125,4]
[366769986,1750440690855,-490.0,0.00028125,4]
[366769987,1750440690865,-495.68878432,0.00028125,4]
[366769988,1750440690875,-490.0,0.00028125,4]
[366769989,1750440690886,-490.0,0.00028125,4]
[366769990,1750440690895,-490.0,0.00028125,4]
[366769991,1750440690905,-490.0,0.00028125,4]
[366769992,1750440690914,-490.0,0.00028125,4]
[366769993,1750440690925,-490.0,0.00028125,4]
[366769994,1750440690935,-490.0,0.00028125,4]
[366769995,1750440690945,-490.0,0.00028125,4]
[366769996,1750440690954,-727.94,0.00028125,4]
[366769997,1750440690964,-490.0,0.00028125,4]
[366769998,1750440690974,-490.0,0.00028125,4]
[366769999,1750440690984,-490.0,0.00028125,4]
[366770000,1750440690993,-490.0,0.00028125,4]
[366770001,1750440691003,-490.0,0.00028125,4]
[366770002,1750440691016,-490.0,0.00028125,4]
[366770003,1750440691026,-490.0,0.00028125,4]
[366770004,1750440691036,-490.0,0.00028125,4]
[366770005,1750440691045,-490.0,0.00028125,4]
[366770006,1750440691056,-490.0,0.00028125,4]
[366770007,1750440691066,-490.0,0.00028125,4]
[366770008,1750440691077,-591.47,0.00028125,4]
[366770009,1750440691088,-1424.33,0.00028125,4]
[366770010,1750440691099,-1144.78,0.00028125,4]
[366770011,1750440691110,-491.74,0.00028125,4]
[366770012,1750440691120,-490.0,0.00028125,4]
[366770013,1750440691131,-1076.06,0.00028125,4]
[366770014,1750440691142,-509.95,0.00028125,4]
[366770015,1750440691154,-318.25223464,0.00028125,4]
[366770016,1750440691164,-490.0,0.00028125,4]
[366770017,1750440691175,-1366.43,0.00028125,4]
[366770018,1750440691185,-527.56,0.00028125,4]
[366770019,1750440691196,-490.0,0.00028125,4]
[366770020,1750440691207,-1816.18,0.00028125,4]
[366770021,1750440691218,-551.8,0.00028125,4]
[366770022,1750440691229,-682.44,0.00028125,4]
[366770023,1750440691241,-490.0,0.00028125,4]
[366770024,1750440691251,-490.0,0.00028125,4]
[366770025,1750440691264,-490.0,0.00028125,4]
[366770026,1750440691275,-490.0,0.00028125,4]
[366770027,1750440691286,-574.86,0.00028125,4]
[366770028,1750440691297,-10103.26,0.00028125,4]
[366770029,1750440691308,-490.0,0.00028125,4]
[366770030,1750440691318,-490.0,0.00028125,4]
[366770031,1750440691329,-634.64,0.00028125,4]
[366770032,1750440691340,-3814.59,0.00028125,2]
[366770033,1750440691350,-1940.17,0.00028125,4]
[366770034,1750440691360,-490.0,0.00028125,4]
[366770035,1750440691371,-710.04,0.00028125,4]
[366770036,1750440691381,-682.88,0.00028125,4]
[366770037,1750440691391,-490.0,0.00028125,4]
[366770038,1750440691402,-2290.89,0.00028125,4]
[366770039,1750440691412,-490.0,0.00028125,4]
[366770040,1750440691422,-490.0,0.00028125,4]
[366770041,1750440691432,-2759.01,0.00028125,4]
[366770042,1750440691443,-3647.07,0.00028125,4]
[366770043,1750440691453,-651.97,0.00028125,4]
[366770044,1750440691464,-490.0,0.00028125,4]
[366770045,1750440691474,-582.01,0.00028125,4]
[366770046,1750440691484,-1217.61,0.00028125,4]
[366770047,1750440691495,-847.56,0.00028125,4]
[366770048,1750440691505,-490.0,0.00028125,4]
[366770049,1750440691519,-1886.27,0.00028125,4]
[366770050,1750440691528,-490.0,0.00028125,4]
[366770051,1750440691539,-1594.08,0.00028125,4]
[366770052,1750440691549,-490.0,0.00028125,4]
[366770053,1750440691559,-490.0,0.00028125,4]
[366770054,1750440691570,-1903.29,0.00028125,4]
[366770055,1750440691579,-665.17,0.00028125,4]
[366770056,1750440691589,-638.76,0.00028125,4]
[366770057,1750440691599,-538.1,0.00028125,4]
[366770058,1750440691609,-1000.0,0.00028125,4]
[366770059,1750440691619,-701.54,0.00028125,4]
[366770060,1750440691629,-632.98,0.00028125,4]
[366770061,1750440691639,-490.0,0.00028125,4]
[366770062,1750440691649,-1799.61,0.00028125,4]
[366770063,1750440691659,-543.75,0.00028125,4]
[366770064,1750440691669,-490.0,0.00028125,4]
[366770065,1750440691679,-490.0,0.00028125,4]
[366770066,1750440691689,-751.18,0.00028125,4]
[366770067,1750440691700,-490.0,0.00028125,4]
[366770068,1750440691710,-490.0,0.00028125,4]
[366770069,1750440691720,-1965.09,0.00028125,4]
[366770070,1750440691730,-490.0,0.00028125,4]
[366770071,1750440691744,-490.0,0.00028125,4]
[366770072,1750440691754,-167.54306683,0.00028125,4]
[366770073,1750440691767,-835.07,0.00028125,4]
[366770074,1750440691777,-260.13229045,0.00028125,4]
[366770075,1750440691788,-506.38,0.00028125,4]
[366770076,1750440691799,-535.19,0.00028125,4]
[366770077,1750440691809,-1865.75,0.00028125,4]